Cogmind - Beta 14 @@@ ROGUE MODE // 2024.09.26 @ 19:48:59 Player: lazy_engineer Result: Self-destructed Performance ------------- Evolutions (1) 500 Regions Visited (3) 600 Robots Destroyed (32) 160 Value Destroyed (820) 820 Prototype IDs (4) 80 Alien Tech Used (0) 0 Bonus (0) 0 TOTAL SCORE: 2160 Bonus ------- None Cogmind --------- Core Integrity 94/400 Matter 300/300 Energy 10/100 System Corruption 0% Temperature Cool (0) Movement Flying (120) Ox1 Location -9/Mines Parts ------- > --- POWER (1) -------- (None) > --- PROPULSION (2) --- Flight Unit > --- UTILITY (4) ------ Medium Storage Unit Weight Redist. System Terrain Scan Processor > --- WEAPON (2) ------- Particle Cannon > --- INVENTORY (10) --- Sensor Array Signal Interpreter Terrain Scan Processor Transport Network Coupler Particle Cannon Particle Cannon Particle Cannon Datajack Plasma Cutter Peak State ------------ > --- POWER ------------ Light Nuclear Core > --- PROPULSION ------- Light Treads Wheel > --- UTILITY ---------- Medium Storage Unit Structural Scanner Improved Terrain Scanner Terrain Scan Processor > --- WEAPON ----------- Improved EM Shotgun Improved EM Shotgun > --- INVENTORY -------- Light Treads Weight Redist. System Improved EM Shotgun Datajack Plasma Cutter Mining Claw [Rating: 19] Favorites ----------- Power Ion Engine Engine Ion Engine Power Core Light Nuclear Core Propulsion Light Treads Treads Light Treads Wheel Wheel Flight Unit Flight Unit Utility Structural Scanner Device Structural Scanner Storage Medium Storage Unit Processor Terrain Scan Processor Weapon Medium Laser Energy Gun Medium Laser Energy Cannon Particle Cannon Ballistic Gun Assault Rifle Special Weapon Mining Laser Slashing Weapon Mining Claw Build | -11 -10 -9 -9 ------- Run | Yrd Mat Mat Min Slots Evolved 2 | . . 2 . Power . | . . . . Propulsion . | . . . . Utility 2 | . . 2 . Weapon . | . . . . Parts Attached 33 | 6 9 12 6 Power 5 | 1 1 3 . Engine 3 | 1 1 1 . Core 2 | . . 2 . Reactor . | . . . . Propulsion 9 | 2 1 2 4 Treads 5 | 1 . 2 2 Leg . | . . . . Wheel 2 | 1 1 . . Hover . | . . . . Flight 2 | . . . 2 Utility 7 | 1 2 3 1 Device 4 | . 1 2 1 Storage 2 | 1 1 . . Processor 1 | . . 1 . Hackware . | . . . . Protection . | . . . . Artifact . | . . . . Weapon 12 | 2 5 4 1 Energy Gun 5 | 1 2 2 . Energy Cannon 2 | . . 2 . Ballistic Gun 1 | 1 . . . Ballistic Cannon . | . . . . Launcher . | . . . . Special Weapon 1 | . 1 . . Impact Weapon . | . . . . Slashing Weapon 3 | . 2 . 1 Piercing Weapon . | . . . . Special Melee Weapon . | . . . . Unidentified Prototypes 2 | . . 2 . Parts Lost 11 | . 2 2 7 Power 3 | . 1 1 1 Propulsion 4 | . . 1 3 Utility 2 | . . . 2 Weapon 2 | . 1 . 1 Highest Loss Streak 7 | . 2 1 7 To Critical Strikes . | . . . . Average Slot Usage (%) 95 | . 93 99 91 Engine 8 | . 14 5 . Core 3 | . . 5 7 Treads 13 | . 14 12 17 Wheel 9 | . 14 9 . Device 15 | . 8 22 20 Storage 12 | . 14 11 11 Processor 6 | . . 11 11 Energy Gun 9 | . 10 13 . Energy Cannon 4 | . . 1 19 Ballistic Gun 5 | . 12 . . Slashing Weapon 5 | . 5 6 1 Peak Build Rating 19 | 6 8 19 19 Average Rating 11 | 4 7 14 17 On Entrance 7 | . 6 8 17 Naked Turns . | . . . . Heaviest Build 25 | 14 20 25 25 Greatest Support 46 | 10 10 40 46 Greatest Overweight (x) 2 | 1 1 2 1 Average Overweight (x) . | . . 1 . Largest Inventory Capacity 10 | 8 10 10 10 Average Capacity 9 | 7 8 10 10 Most Carried 10 | 7 8 10 10 Average Carried 6 | 3 6 5 9 Final Capacity 10 | 8 10 10 10 Final Carried 9 | 6 6 9 9 Class Distribution -------------------- 49% | Mutant 30% | Scavenger-Skirmisher 19% | Scavenger-Assassin Dominant Class ---------------- Mutant | -10/Materials Scavenger-Assassin | -9/Materials Scavenger-Skirmisher | -9/Mines Resources | -11 -10 -9 -9 ----------- Run | Yrd Mat Mat Min Matter Collected 589 | 284 135 60 110 Remotely . | . . . . Salvage Created 1302 | 121 357 728 96 Parts 73 | 11 16 41 5 Haulers Intercepted 2 | . 1 1 . Recyclers Shooed 1 | 1 . . . Parts Field Recycled . | . . . . Retrieved Matter . | . . . . Parts Self-Destructed . | . . . . Prevented . | . . . . Kills | -11 -10 -9 -9 ------- Run | Yrd Mat Mat Min Combat Hostiles Destroyed 25 | . 6 12 7 Melee 7 | . 3 2 2 Guns 12 | . 3 9 . Cannons 4 | . . . 4 AOE 1 | . . 1 . Classes Destroyed 9 | 2 4 1 2 Builder 2 | . 1 1 . Tunneler 2 | 2 . . . Hauler 2 | . 1 1 . Recycler 2 | 1 . 1 . Operator 2 | . 1 1 . Swarmer 4 | . . . 4 Grunt 17 | . 6 11 . Sentry 1 | . . 1 . Assembled 3 | . . . 3 Best Kill Streak 4 | 2 2 3 4 Combat Bots Only 4 | . 2 3 4 Max Kills in Single Turn 2 | 1 1 2 1 Gunslinging . | . . . . Exploded 1 | . . 1 . Melee 1 | . 1 1 1 Uniques/NPCs Destroyed . | . . . . Combat | -11 -10 -9 -9 -------- Run | Yrd Mat Mat Min Hostile Shots Fired 127 | . 43 39 45 Missed 34 | . 12 12 10 Damage Taken 1401 | . 395 404 602 Core 384 | . 78 111 195 Absorbed by Shields . | . . . . Core Remaining (%) 84 | 100 68 . . Volleys Fired 74 | 8 29 29 8 Largest 2 | 1 2 2 2 Hottest 136 | 20 100 90 136 Shots Fired 112 | 8 43 48 13 Gun 98 | 8 42 48 . Cannon 13 | . . . 13 Launcher . | . . . . Special 1 | . 1 . . Kinetic 24 | 8 16 . . Thermal 50 | . 27 10 13 Explosive . | . . . . Electromagnetic 38 | . . 38 . Robot Hit Streak 16 | 2 16 12 7 Robot Miss Streak 3 | 1 3 3 2 Penetration Max . | . . . . Secondary Targets . | . . . . Shots Hit Robots 112 | 5 49 42 16 Core Hits 52 | 3 17 27 5 Critical Kills 1 | . . . 1 Critical Parts Destroyed . | . . . . Critical Strikes 4 | . 3 . 1 Burn 3 | . 3 . . Meltdown 1 | . . . 1 Melee Attacks 48 | . 29 5 14 Impact . | . . . . Slashing 48 | . 29 5 14 Piercing . | . . . . Sneak Attacks 3 | . 2 1 . Combat Hostiles . | . . . . Follow-up Attacks . | . . . . Damage Inflicted 2113 | 66 845 817 385 Guns 1035 | 66 390 579 . Cannons 207 | . . . 207 Explosions 97 | . . 97 . Melee 774 | . 455 141 178 Ramming . | . . . . Kinetic 207 | 66 141 . . Thermal 651 | . 249 195 207 Explosive . | . . . . Electromagnetic 481 | . . 481 . Impact . | . . . . Slashing 774 | . 455 141 178 Piercing . | . . . . Highest Corruption . | . . . . Average Corruption . | . . . . Corruption Purged . | . . . . Corruption Blocked . | . . . . Overload Shots . | . . . . Overflow Damage 48 | . 13 . 35 Projectiles 2 | . . . 2 Explosions . | . . . . Melee 46 | . 13 . 33 Knockbacks . | . . . . Impact . | . . . . Kinetic . | . . . . Secondary . | . . . . Self-Inflicted Damage 68 | . . 68 . Shots 2 | . . 2 . Rammed . | . . . . Targets Rammed . | . . . . Kicked . | . . . . Crushed . | . . . . Highest Temperature 288 | . 134 222 288 Average Temperature 71 | . 37 77 140 Received Heat Transfer 387 | . 225 162 . Effects 2 | . . 2 . Interference 2 | . . 2 . Siege Activations . | . . . . Robots Corrupted . | . . . . Combat Hostiles . | . . . . Parts Fried 1 | . . 1 . Impact Corruptions . | . . . . Robots Melted 1 | . . . 1 Combat Hostiles 1 | . . . 1 Parts Melted 6 | . 1 3 2 Heat Transferred 1778 | . 962 446 370 Parts Sabotaged . | . . . . Parts Stolen . | . . . . Parts Stripped . | . . . . Power Chain Reactions 2 | . . 2 . Alert | -11 -10 -9 -9 ------- Run | Yrd Mat Mat Min Peak Influence 272 | 15 272 251 154 Initial 97 | . 9 57 97 Average 92 | 5 94 93 105 Maximum Alert Level 1 | . 1 1 . Low Security (%) 87 | 100 80 87 100 Level 1 12 | . 19 12 . Level 2 . | . . . . Level 3 . | . . . . Level 4 . | . . . . Level 5 . | . . . . High Security . | . . . . Max Security . | . . . . Squads Dispatched 2 | . 1 1 . Investigation . | . . . . Extermination . | . . . . Reinforcement 2 | . 1 1 . Assault . | . . . . Garrison . | . . . . Intercept . | . . . . Searches Triggered . | . . . . Construction Impeded . | . . . . Haulers Reinforced . | . . . . Active Scanning Responses . | . . . . Cargo Convoy Interrupts . | . . . . Stealth | -11 -10 -9 -9 --------- Run | Yrd Mat Mat Min Distress Signals 2 | . 1 1 . Communications Jammed . | . . . . Distress Signals . | . . . . Times Spotted 42 | . 18 14 10 Peak Tracking Total 10 | . 4 4 10 Tactical Retreats 6 | . 5 . 1 Traps | -11 -10 -9 -9 ------- Run | Yrd Mat Mat Min Traps Triggered . | . . . . Indirectly . | . . . . Trap Hack Attempts . | . . . . Triggered . | . . . . Disarmed . | . . . . Reprogrammed . | . . . . Reused . | . . . . Traps Extracted . | . . . . Installed . | . . . . Triggered . | . . . . Machines | -11 -10 -9 -9 ---------- Run | Yrd Mat Mat Min Machines Disabled 2 | . . 1 1 Max in Single Turn 1 | . . 1 1 Machines Repaired . | . . . . Machines Dismantled . | . . . . Machines Sabotaged . | . . . . Overloaded Fab Kills . | . . . . Hacking | -11 -10 -9 -9 --------- Run | Yrd Mat Mat Min Machines Accessed 4 | . 2 2 . Terminals 4 | . 2 2 . Fabricators . | . . . . Repair Stations . | . . . . Recycling Units . | . . . . Scanalyzers . | . . . . Garrison Access . | . . . . Total Hacks 8 | . 4 4 . Successful 2 | . 1 1 . Failed 6 | . 3 3 . Catastrophic 1 | . 1 . . Database Lockouts . | . . . . Manual 7 | . 4 3 . Terminals 8 | . 4 4 . Fabricators . | . . . . Repair Stations . | . . . . Recycling Units . | . . . . Scanalyzers . | . . . . Garrison Access . | . . . . Terminal Hacks 1 | . . 1 . Prototype ID Bank 1 | . . 1 . Fabricator Hacks . | . . . . Repair Station Hacks . | . . . . Recycling Unit Hacks . | . . . . Scanalyzer . | . . . . Garrison Access Hacks . | . . . . Unauthorized Hacks 1 | . 1 . . Terminals 1 | . 1 . . Operators 1 | . 1 . . Fabricators . | . . . . Repair Stations . | . . . . Recycling Units . | . . . . Scanalyzers . | . . . . Garrison Access . | . . . . Data Cores Recovered . | . . . . Used . | . . . . Hacking Detections 4 | . 2 2 . Full Trace Events . | . . . . Feedback Events . | . . . . Feedback Blocked . | . . . . Robot Schematics Acquired . | . . . . Robots Built . | . . . . Authchips . | . . . . Time . | . . . . Total Robot Build Rating . | . . . . Part Schematics Acquired . | . . . . Parts Built . | . . . . Authchips . | . . . . Time . | . . . . Total Part Build Rating . | . . . . Parts Repaired . | . . . . Time . | . . . . Parts Recycled . | . . . . Recycled Matter . | . . . . Retrieved Matter . | . . . . Retrieved Components . | . . . . Parts Scanalyzed . | . . . . Part Schematics Acquired . | . . . . Parts Damaged . | . . . . Bothacking | -11 -10 -9 -9 ------------ Run | Yrd Mat Mat Min Used RIF Installer . | . . . . Robots Hacked . | . . . . Non-combat . | . . . . Combat . | . . . . Robot Hacks Applied . | . . . . Relay Couplers Released . | . . . . Fabnet Peak Effective % . | . . . . Robots Rewired . | . . . . Allies Hacked . | . . . . Hacks Repelled . | . . . . Allies | -11 -10 -9 -9 -------- Run | Yrd Mat Mat Min Total Allies 2 | . . . 2 Largest Group 2 | . . . 2 Highest-Rated Group 45 | . . . 45 Highest-Rated Ally 31 | . . . 31 Total Orders . | . . . . Ally Attacks 9 | . . . 9 Total Damage 106 | . . . 106 Kills 3 | . . . 3 Allies Corrupted . | . . . . Allies Melted . | . . . . Intel | -11 -10 -9 -9 ------- Run | Yrd Mat Mat Min Robot Analysis Total . | . . . . Derelict Logs Recovered 1 | . . . 1 Drone Launches . | . . . . Drone Recoveries . | . . . . Exploration | -11 -10 -9 -9 ------------- Run | Yrd Mat Mat Min Turns Passed 1929 | 84 811 698 336 Spaces Moved 750 | 52 342 202 154 Core 7 | 2 . . 5 Treads 181 | . . 35 146 Legs . | . . . . Wheels 559 | 50 342 167 . Hover . | . . . . Flight 3 | . . . 3 Fastest Speed 50 | 50 80 95 100 Average Speed 114 | 88 94 118 161 Slowest Speed 240 | 95 95 160 240 Overloaded Moves . | . . . . Propulsion Burnouts . | . . . . Robots Hopped . | . . . . Cave-ins Triggered . | . . . . Exploration Rate (%) 26 | 4 26 23 52 Regions Visited 3 Branch Regions 1 Pre-discovered Areas . | . . . . Known Exits Taken . | . . . . Unknown Exits Taken 3 | 1 1 1 . Scrap Searched 2 | . . . 2 Spaces Dug 1 | . 1 . . Terrain Destroyed 12 | . 1 11 . Melee . | . . . . Projectile 1 | . 1 . . AOE 11 | . . 11 . Terrain Rammed . | . . . . Walls Destroyed . | . . . . Machines Disabled . | . . . . Actions | -11 -10 -9 -9 --------- Run | Yrd Mat Mat Min Total 1611 | 81 726 604 200 Wait 655 | 4 303 336 12 Move 747 | 51 341 201 154 Hop . | . . . . Pick Up 39 | 12 9 14 4 Fast Attach 1 | . . . 1 Attach 20 | 6 3 7 4 Detach . | . . . . Swap 12 | . 6 5 1 Drop 15 | . 6 7 2 Fire 74 | 8 29 29 8 Melee 48 | . 29 5 14 Ram . | . . . . Kick . | . . . . Crush . | . . . . Escape Stasis . | . . . . Rewire . | . . . . Trap . | . . . . Miscellaneous . | . . . . Route ------- -11/Scrapyard -10/Materials -9/Materials (discovered 2 exits: [*Min] / [*Sto]) -9/Mines (discovered 2 exits: *Mat x2) History --------- Turn | Location | Event 25 | -11/Scrapyard | Discovered new exit (range 16) 85 | -11/Scrapyard | Entered Materials 306 | -10/Materials | Build established: Mutant 888 | -10/Materials | Discovered new exit (range 9) 896 | -10/Materials | Entered another Materials area 896 | -9/Materials | Evolved 2 slots: Utility x2 898 | -9/Materials | Discovered new exit (range 8) 1184 | -9/Materials | Build established: Scavenger-Assassin 1564 | -9/Materials | Discovered new exit (range 11) 1575 | -9/Materials | Build established: Scavenger-Skirmisher 1594 | -9/Materials | Entered Mines 1684 | -9/Mines | Discovered new exit (range 9) 1760 | -9/Mines | Identified exit to Materials 1805 | -9/Mines | Assembled infested the area 1897 | -9/Mines | Core integrity fell below 50% 1930 | -9/Mines | Self-destructed Last Messages --------------- 01848_ Destroyed Flight Unit. 01848_ S-10 Pest suffers critical hit (Meltdown). 01848_ Lgt. Ion Engine melted. 01858_ Structural Scanner destroyed. 01872_ Destroyed Asb. Hover Unit. 01872_ as-18400 destroyed. 01873_ Imp. Treads destroyed. 01881_ Destroyed Asb. Hover Unit. 01885_ Imp. Treads destroyed. 01887_ as-76552 destroyed. 01891_ Acquired 10 matter. 01894_ Acquired Flight Unit. 01911_ Mining Claw destroyed. 01911_ as-25177 destroyed. 01912_ as-13489 sneak attacks. 01914_ Acquired Flight Unit. 01918_ Acquired 20 matter. 01921_ R-06 Scavenger collects Flight Unit. 01927_ Flight Unit destroyed. 01930_ Imp. Terrain Scanner destroyed. Map ----- +----------------------------------------------------+ | ????????????????????????????????????? | | ???????????????????? ##???????????????? | | ???????????????????? ###??????????????? | | ???????????????????? ###?????????????? | | ????????????????????? ####???????????? | | ????????????????????? #########?????? | | ??????????????????????= #########????? | | ??????????????????????%= ####???? | | ?????????????????????#= ###???? | | ?????????????????????## ## ??? | | ?????????????????????## ## ??? | | ?????????????????????## ??? | | ????????????????????### ? ????? | | ???????????????????#### ##?? ###???? | | ???????????????????### #### ###???? | | ???????????????????## #### ###### | | ???????????????????## ## ###### | | ???????????????????## | | ???????????????????### ####### | | ???????????????????#### ######## | | ??????????????? ######### #### | | ?????????????? ######### ## ### | | ??????????????### #### ## ## ## | | ?????????? ##### r ### ### | | ?????????? #####% """ ##%#### /#### | | ????????## # @a %"" a|##### % #### | | ????????## ## %"" ###### % | | ????????## ###%% k ######?#### #### | | ????????## ###### ########??######### | | ????????## $##?### ####???????######?? | | ????????## ?????## ##????????????????? | | ????????## ????## ????????????????? | | ???????? ????## "????????????????? | | ???????? ?????## ""???????????????? | | ???????? ??????## """??????????????? | | ??????? ??????## ??????????????? | | ??????? ???????## ""???????????????? | | ??????##???????## ""???????????????? | | ???????????????## "????????????????? | | ???????????????## ????????????????? | | ???????????????## "????????????????? | | ???????????????## "????????????????? | | ???????????????## ?????????????????? | | ???????????????## ?????????????????? | | ??????????????????????????????????????? | | ??????????????????????????????????????? | | ??????????????????????????????????????? | | ??????????????????????????????????????? | | ??????????????????????????????????????? | | ??????????????????????????????????????? | +----------------------------------------------------+ Best States ------------- Heat Dissipation 28 Energy Generation 14 Energy Capacity 250 Matter Stores 300 Matter Capacity 300 Sight Range 16 Terrain Scan Range 16 Terrain Scan Density 85 Additional Mass Support 6 Evasion (%) 44 Recoil Reduction 2 Item Schematics ----------------- None Robot Schematics ------------------ None Fabricated ------------ Nothing Alien Tech Used ----------------- None Achievements -------------- None Challenges ------------ None Game ------ Seed ZhirovSpikedTube Manual? 0 Play Time 00:21:41 Cumulative 38.6 hours Start 2024.09.26 @ 19:29:32 End 2024.09.26 @ 19:48:59 Sessions 1 Manual Loads 0 Difficulty Rogue Special Mode None Game No. 80 Rogue 80 Adventurer 0 Explorer 0 Win Type - Total 0 Types 0/0/0/0/0/0/0/0/0 Lore% 15 Gallery% 27 Achievement% 26 Wizard Run 0 Options --------- Layout 0 ASCII 0 Keyboard 0 Movement Mouse Keybinds 0 Fullscreen 1 Font 24/Smallcaps Map View 76x50 Zoom Use 0% Tactical HUD 1 Map Filters NONE Filters NONE Steam 1 RUN: e488594c-62cc-47ca-8f49-e00ba2ea6d1d